fUSD/lending_fUSD_20251017
["ID","MTS","AMOUNT","RATE_DAILY","PERIOD"]
[391689556,1760729462893,-273.51,0.00044657,120]
[391689557,1760729462902,-300.0,0.00044657,2]
[391689558,1760729462911,-500.0,0.00044657,120]
[391689559,1760729462921,-500.0,0.00044657,30]
[391689560,1760729462931,-500.0,0.00044657,120]
[391689561,1760729462940,-500.0,0.00044657,16]
[391689562,1760729462950,-500.0,0.00044657,120]
[391689563,1760729462959,-500.0,0.00044657,120]
[391689564,1760729462968,-500.0,0.00044657,120]
[391689565,1760729462978,-500.0,0.00044657,120]
[391689566,1760729462987,-2514.88,0.00044657,120]
[391689567,1760729462997,-500.0,0.00044657,120]
[391689568,1760729463006,-531.34,0.00044657,120]
[391689569,1760729463015,-567.23304576,0.00044657,30]
[391689570,1760729463025,-500.0,0.00044657,120]
[391689571,1760729463035,-1000.0,0.00044657,120]
[391689572,1760729463045,-500.0,0.00044657,120]
[391689573,1760729463055,-500.0,0.00044657,120]
[391689574,1760729463064,-500.0,0.00044657,120]
[391689575,1760729463074,-500.0,0.00044657,120]
[391689576,1760729463084,-500.0,0.00044657,120]
[391689577,1760729463094,-201.43947205,0.00044657,120]
[391689578,1760729463104,-500.0,0.00044657,120]
[391689579,1760729463114,-500.0,0.00044657,120]
[391689580,1760729463123,-500.0,0.00044657,120]
[391689581,1760729463134,-500.0,0.00044657,120]
[391689582,1760729463143,-500.0,0.00044657,120]
[391689583,1760729463152,-500.0,0.00044657,120]
[391689584,1760729463162,-500.0,0.00044657,120]
[391689585,1760729463172,-500.0,0.00044657,120]
[391689586,1760729463181,-500.0,0.00044657,120]
[391689587,1760729463191,-500.0,0.00044657,120]
[391689588,1760729463201,-500.0,0.00044657,120]
[391689589,1760729463211,-500.0,0.00044657,120]
[391689590,1760729463220,-500.0,0.00044657,120]
[391689591,1760729463230,-730.0,0.00044658,2]
[391689592,1760729463240,-1982.0,0.00044658,2]
[391689593,1760729463250,-500.0,0.00044658,2]
[391689594,1760729463259,-1152.0,0.00044658,2]
[391689595,1760729463269,-150.0,0.0004466,30]
[391689596,1760729463278,-150.0,0.00044686,30]
[391689597,1760729463288,-161.0,0.000447,120]
[391689598,1760729463298,-730.0,0.00044712,2]
[391689599,1760729463308,-1982.0,0.00044712,2]
[391689600,1760729463318,-500.0,0.00044712,2]
[391689601,1760729463328,-1152.0,0.00044712,2]
[391689602,1760729463337,-150.0,0.00044722,30]
[391689603,1760729463347,-200.0,0.00044724,120]
[391689604,1760729463357,-150.0,0.00044726,30]
[391689605,1760729463366,-150.0,0.00044749,120]
[391689606,1760729463376,-150.0,0.0004475,30]
[391689607,1760729463386,-150.0,0.00044761,30]
[391689608,1760729463396,-730.0,0.00044767,2]
[391689609,1760729463405,-1982.0,0.00044767,2]
[391689610,1760729463415,-500.0,0.00044767,2]
[391689611,1760729463429,-1152.0,0.00044767,2]
[391689612,1760729463439,-150.0,0.00044791,30]
[391689613,1760729463448,-200.0,0.000448,27]
[391689614,1760729463458,-150.0,0.00044813,30]
[391689615,1760729463468,-150.0,0.00044813,30]
[391689616,1760729463478,-500.0,0.0004482,2]
[391689617,1760729463488,-730.0,0.00044822,2]
[391689618,1760729463499,-1982.0,0.00044822,2]
[391689619,1760729463509,-500.0,0.00044822,2]
[391689620,1760729463519,-1152.0,0.00044822,2]
[391689621,1760729463529,-150.0,0.00044854,30]
[391689622,1760729463538,-150.0,0.00044856,30]
[391689623,1760729463548,-2846.14693,0.00044865,25]
[391689624,1760729463559,-730.0,0.00044877,2]
[391689625,1760729463568,-1982.0,0.00044877,2]
[391689626,1760729463578,-500.0,0.00044877,2]
[391689627,1760729463588,-1152.0,0.00044877,2]
[391689628,1760729463597,-151.0,0.00044877,120]
[391689629,1760729463607,-897365.15459374,0.0004488,30]
[391689630,1760729463616,-151.0,0.0004488,120]
[391689631,1760729463625,-2807.343157,0.0004488,120]
[391689632,1760729463635,-2807.343157,0.0004488,120]
[391689633,1760729463644,-2807.343157,0.0004488,120]
[391689634,1760729463654,-663.926566,0.0004488,120]
[391689635,1760729463664,-2807.343157,0.0004488,120]
[391689636,1760729463674,-663.926566,0.0004488,120]
[391689637,1760729463684,-663.926566,0.0004488,120]
[391689638,1760729463693,-663.926566,0.0004488,120]
[391689639,1760729463703,-5482.815337,0.0004488,120]
[391689640,1760729463713,-151.0,0.0004488,120]
[391689641,1760729463722,-5482.815337,0.0004488,120]
[391689642,1760729463732,-5482.815337,0.0004488,120]
[391689643,1760729463742,-5482.815337,0.0004488,120]
[391689644,1760729463752,-250.695782,0.0004488,120]
[391689645,1760729463762,-151.0,0.0004488,120]
[391689646,1760729463772,-250.695782,0.0004488,120]
[391689647,1760729463781,-151.0,0.0004488,120]
[391689648,1760729463790,-741.469166,0.0004488,120]
[391689649,1760729463800,-250.695782,0.0004488,120]
[391689650,1760729463809,-151.0,0.0004488,120]
[391689651,1760729463819,-741.469166,0.0004488,120]
[391689652,1760729463829,-250.695782,0.0004488,120]
[391689653,1760729463839,-165.780699,0.0004488,120]
[391689654,1760729463848,-972.62092,0.0004488,120]
[391689655,1760729463858,-741.469166,0.0004488,120]
[391689656,1760729463867,-972.62092,0.0004488,120]
[391689657,1760729463877,-741.469166,0.0004488,120]
[391689658,1760729463887,-972.62092,0.0004488,120]
[391689659,1760729463897,-972.62092,0.0004488,120]
[391689660,1760729463906,-359.280629,0.0004488,120]
[391689661,1760729463915,-359.280629,0.0004488,120]
[391689662,1760729463926,-359.280629,0.0004488,120]
[391689663,1760729463935,-151.0,0.0004488,120]
[391689664,1760729463944,-359.280629,0.0004488,120]
[391689665,1760729463954,-151.0,0.0004488,120]
[391689666,1760729463963,-151.0,0.0004488,120]
[391689667,1760729463972,-161.55748726,0.0004488,120]
[391689668,1760729463982,-151.0,0.0004488,30]
[391689669,1760729463991,-218.027628,0.0004488,20]
[391689670,1760729464001,-156.415448,0.0004488,120]
[391689671,1760729464010,-218.027628,0.0004488,20]
[391689672,1760729464020,-342.892241,0.0004488,120]
[391689673,1760729464029,-711.887367,0.0004488,120]
[391689674,1760729464038,-218.027628,0.0004488,20]
[391689675,1760729464047,-151.0,0.0004488,120]
[391689676,1760729464057,-711.887367,0.0004488,120]
[391689677,1760729464067,-342.892241,0.0004488,120]
[391689678,1760729464076,-218.027628,0.0004488,20]
[391689679,1760729464086,-151.0,0.0004488,120]
[391689680,1760729464095,-342.892241,0.0004488,120]
[391689681,1760729464104,-711.887367,0.0004488,120]
[391689682,1760729464114,-151.0,0.0004488,120]
[391689683,1760729464123,-711.887367,0.0004488,120]
[391689684,1760729464133,-342.892241,0.0004488,120]
[391689685,1760729464142,-151.0,0.0004488,120]
[391689686,1760729464151,-151.0,0.0004488,120]
[391689687,1760729464160,-151.0,0.0004488,120]
[391689688,1760729464170,-151.0,0.0004488,120]
[391689689,1760729464180,-151.0,0.0004488,120]
[391689690,1760729464189,-151.0,0.0004488,120]
[391689691,1760729464199,-151.0,0.0004488,120]
[391689692,1760729464208,-211.970065,0.0004488,120]
[391689693,1760729464218,-151.0,0.0004488,120]
[391689694,1760729464229,-211.970065,0.0004488,120]
[391689695,1760729464238,-735.510893,0.0004488,120]
[391689696,1760729464248,-151.0,0.0004488,120]
[391689697,1760729464257,-211.970065,0.0004488,120]
[391689698,1760729464267,-735.510893,0.0004488,120]
[391689699,1760729464277,-164.573965,0.0004488,120]
[391689700,1760729464287,-211.970065,0.0004488,120]
[391689701,1760729464297,-735.510893,0.0004488,120]
[391689702,1760729464307,-735.510893,0.0004488,120]
[391689703,1760729464317,-151.0,0.0004488,120]
[391689704,1760729464327,-151.0,0.0004488,120]
[391689705,1760729464336,-151.0,0.0004488,120]
[391689706,1760729464346,-346.497404,0.0004488,120]
[391689707,1760729464355,-346.497404,0.0004488,120]
[391689708,1760729464364,-280.345504,0.0004488,120]
[391689709,1760729464374,-346.497404,0.0004488,120]
[391689710,1760729464383,-280.345504,0.0004488,120]
[391689711,1760729464392,-346.497404,0.0004488,120]
[391689712,1760729464402,-280.345504,0.0004488,120]
[391689713,1760729464411,-280.345504,0.0004488,120]
[391689714,1760729464422,-151.0,0.0004488,120]
[391689715,1760729464436,-290.720875,0.0004488,120]
[391689716,1760729464445,-151.0,0.0004488,120]
[391689717,1760729464454,-670.971821,0.0004488,120]
[391689718,1760729464464,-670.971821,0.0004488,120]
[391689719,1760729464476,-177.804928,0.0004488,120]
[391689720,1760729464486,-151.0,0.0004488,120]
[391689721,1760729464496,-177.804928,0.0004488,120]
[391689722,1760729464508,-670.971821,0.0004488,120]
[391689723,1760729464518,-300.528512,0.0004488,120]
[391689724,1760729464527,-670.971821,0.0004488,120]
[391689725,1760729464537,-177.804928,0.0004488,120]
[391689726,1760729464547,-621.69148,0.0004488,120]
[391689727,1760729464556,-177.804928,0.0004488,120]
[391689728,1760729464566,-621.69148,0.0004488,120]
[391689729,1760729464576,-151.0,0.0004488,120]
[391689730,1760729464586,-621.69148,0.0004488,120]
[391689731,1760729464596,-154.421392,0.0004488,120]
[391689732,1760729464606,-621.69148,0.0004488,120]
[391689733,1760729464616,-154.421392,0.0004488,120]
[391689734,1760729464626,-154.421392,0.0004488,120]
[391689735,1760729464635,-151.0,0.0004488,120]
[391689736,1760729464645,-297.945712,0.0004488,120]
[391689737,1760729464654,-154.421392,0.0004488,120]
[391689738,1760729464663,-151.0,0.0004488,120]
[391689739,1760729464673,-283.264368,0.0004488,120]
[391689740,1760729464683,-297.945712,0.0004488,120]
[391689741,1760729464692,-151.0,0.0004488,120]
[391689742,1760729464702,-283.264368,0.0004488,120]
[391689743,1760729464711,-297.945712,0.0004488,120]
[391689744,1760729464720,-249.844715,0.0004488,120]
[391689745,1760729464729,-297.945712,0.0004488,120]
[391689746,1760729464738,-283.264368,0.0004488,120]
[391689747,1760729464748,-304.54965627,0.0004489,120]
[391689748,1760729464758,-2132.37187403,0.000449,30]
[391689749,1760729464767,-1698.25441444,0.000449,15]
[391689750,1760729464777,-2000.0,0.000449,16]
[391689751,1760729464786,-150.0,0.00044921,30]
[391689752,1760729464796,-500.0,0.00044931,120]
[391689753,1760729464806,-500.0,0.00044931,120]
[391689754,1760729464816,-500.0,0.00044931,120]
[391689755,1760729464825,-500.0,0.00044931,120]
[391689756,1760729464835,-500.0,0.00044931,120]
[391689757,1760729464844,-500.0,0.00044931,120]
[391689758,1760729464853,-500.0,0.00044931,120]
[391689759,1760729464862,-500.0,0.00044931,120]
[391689760,1760729464872,-500.0,0.00044931,120]
[391689761,1760729464882,-554.93,0.00044931,120]
[391689762,1760729464891,-500.0,0.00044931,120]
[391689763,1760729464901,-500.0,0.00044931,120]
[391689764,1760729464911,-500.0,0.00044931,120]
[391689765,1760729464920,-500.0,0.00044931,120]
[391689766,1760729464930,-500.0,0.00044931,120]
[391689767,1760729464940,-500.0,0.00044931,120]
[391689768,1760729464950,-500.0,0.00044931,120]
[391689769,1760729464960,-500.0,0.00044931,120]
[391689770,1760729464970,-500.0,0.00044931,120]
[391689771,1760729464979,-500.0,0.00044931,120]
[391689772,1760729464988,-500.0,0.00044931,7]
[391689773,1760729464997,-500.0,0.00044931,120]
[391689774,1760729465007,-500.0,0.00044931,120]
[391689775,1760729465017,-500.0,0.00044931,120]
[391689776,1760729465027,-500.0,0.00044931,120]
[391689777,1760729465036,-500.0,0.00044931,120]
[391689778,1760729465045,-201.93736586,0.00044931,120]
[391689779,1760729465054,-500.0,0.00044931,120]
[391689780,1760729465063,-500.0,0.00044931,2]
[391689781,1760729465072,-842.71,0.00044931,120]
[391689782,1760729465081,-500.0,0.00044931,120]
[391689783,1760729465090,-500.0,0.00044931,120]
[391689784,1760729465100,-568.23,0.00044931,120]
[391689785,1760729465109,-500.0,0.00044931,2]
[391689786,1760729465119,-150.99711564,0.00044931,120]
[391689787,1760729465129,-514.4,0.00044931,120]
[391689788,1760729465138,-500.0,0.00044931,6]
[391689789,1760729465148,-500.0,0.00044931,120]
[391689790,1760729465158,-500.0,0.00044931,120]
[391689791,1760729465167,-500.0,0.00044931,120]
[391689792,1760729465177,-500.0,0.00044931,120]
[391689793,1760729465187,-620.58,0.00044931,120]
[391689794,1760729465197,-500.0,0.00044931,14]
[391689795,1760729465206,-500.0,0.00044931,120]
[391689796,1760729465216,-503.14608184,0.00044931,120]
[391689797,1760729465225,-500.0,0.00044931,60]
[391689798,1760729465234,-300.0,0.00044931,2]
[391689799,1760729465244,-370.97962825,0.00044931,120]
[391689800,1760729465253,-603.75267034,0.00044931,120]
[391689801,1760729465262,-500.0,0.00044931,120]
[391689802,1760729465272,-500.0,0.00044931,120]
[391689803,1760729465281,-268.16,0.00044931,120]
[391689804,1760729465291,-2514.88,0.00044931,120]
[391689805,1760729465300,-500.0,0.00044931,120]
[391689806,1760729465310,-531.34,0.00044931,120]
[391689807,1760729465319,-500.0,0.00044931,120]
[391689808,1760729465329,-1000.0,0.00044931,120]
[391689809,1760729465339,-500.0,0.00044931,120]
[391689810,1760729465348,-500.0,0.00044931,120]
[391689811,1760729465358,-500.0,0.00044931,120]
[391689812,1760729465367,-500.0,0.00044931,120]
[391689813,1760729465377,-500.0,0.00044931,120]
[391689814,1760729465386,-500.0,0.00044931,120]
[391689815,1760729465395,-500.0,0.00044931,120]
[391689816,1760729465404,-500.0,0.00044931,120]
[391689817,1760729465414,-500.0,0.00044931,120]
[391689818,1760729465424,-500.0,0.00044931,120]
[391689819,1760729465436,-500.0,0.00044931,120]
[391689820,1760729465446,-500.0,0.00044931,120]
[391689821,1760729465455,-500.0,0.00044931,120]
[391689822,1760729465465,-500.0,0.00044931,120]
[391689823,1760729465474,-500.0,0.00044931,120]
[391689824,1760729465483,-500.0,0.00044931,120]
[391689825,1760729465614,-730.0,0.00044931,2]
[391689826,1760729465624,-1982.0,0.00044931,2]
[391689827,1760729465634,-500.0,0.00044931,2]
[391689828,1760729465643,-1152.0,0.00044931,2]
[391689829,1760729465653,-300.40373765,0.0004497,3]
[391689830,1760729465662,-400.0,0.0004497,3]
[391689831,1760729465672,-200.0,0.00044985,30]
[391689832,1760729465683,-207.4,0.00044985,30]
[391689833,1760729465692,-215.0738,0.00044985,30]
[391689834,1760729465702,-223.0315306,0.00044985,30]
[391689835,1760729465712,-231.28369723,0.00044985,30]
[391689836,1760729465721,-239.84119403,0.00044985,30]
[391689837,1760729465731,-248.71531821,0.00044985,30]
[391689838,1760729465740,-257.91778498,0.00044985,30]
[391689839,1760729465750,-267.46074303,0.00044985,30]
[391689840,1760729465760,-277.35679052,0.00044985,30]
[391689841,1760729465769,-287.61899177,0.00044985,30]
[391689842,1760729465779,-298.26089446,0.00044985,30]
[391689843,1760729465789,-309.29654756,0.00044985,30]
[391689844,1760729465799,-320.74051982,0.00044985,30]
[391689845,1760729465808,-332.60791905,0.00044985,30]
[391689846,1760729465817,-344.91441206,0.00044985,30]
[391689847,1760729465826,-357.6762453,0.00044985,30]
[391689848,1760729465836,-370.91026638,0.00044985,30]
[391689849,1760729465845,-384.63394623,0.00044985,30]
[391689850,1760729465854,-398.86540225,0.00044985,30]
[391689851,1760729465864,-740.02140405,0.00044986,2]
[391689852,1760729465873,-1983.48111882,0.00044986,2]
[391689853,1760729465883,-500.0,0.00044986,2]
[391689854,1760729465892,-1167.0,0.00044986,2]
[391689855,1760729465901,-211.07088903,0.00044986,30]
[391689856,1760729465911,-199.58609739,0.00044986,30]
[391689857,1760729465920,-203.16471664,0.00044986,30]
[391689858,1760729465930,-254.15081905,0.00044986,30]
[391689859,1760729465939,-229.25316466,0.00044986,30]
[391689860,1760729465948,-263.87544006,0.00044986,30]
[391689861,1760729465958,-236.78100062,0.00044986,30]
[391689862,1760729465967,-169.55956813,0.00044986,30]
[391689863,1760729465977,-158.22014003,0.00044986,30]
[391689864,1760729465986,-191.4260712,0.00044986,30]
[391689865,1760729465996,-241.14291791,0.00044986,30]
[391689866,1760729466005,-153.00266309,0.00044986,30]
[391689867,1760729466015,-210.64365556,0.00044986,30]
[391689868,1760729466025,-230.85546025,0.00044986,30]
[391689869,1760729466034,-240.42864337,0.00044986,30]
[391689870,1760729466045,-150.0,0.0004499,120]
[391689871,1760729466054,-150.0,0.0004499,120]
[391689872,1760729466064,-10118.65,0.0004499,120]
[391689873,1760729466074,-700.0,0.0004499,120]
[391689874,1760729466083,-500.0,0.0004499,120]
[391689875,1760729466093,-151.0,0.00044997,120]
[391689876,1760729466103,-151.0,0.00044997,120]
[391689877,1760729466112,-300.0,0.00044999,30]
[391689878,1760729466122,-300.0,0.00044999,30]
[391689879,1760729466132,-1000.0,0.00044999,120]
[391689880,1760729466141,-151.0,0.00044999,120]
[391689881,1760729466151,-156.587,0.00044999,120]
[391689882,1760729466160,-151.0,0.00044999,120]
[391689883,1760729466169,-200.0,0.00044999,120]
[391689884,1760729466180,-168.84223589,0.00044999,120]
[391689885,1760729466190,-250.0,0.00044999,120]
[391689886,1760729466201,-250.0,0.00044999,120]
[391689887,1760729466210,-250.0,0.00044999,120]
[391689888,1760729466220,-250.0,0.00044999,120]
[391689889,1760729466229,-250.0,0.00044999,120]
[391689890,1760729466239,-250.0,0.00044999,120]
[391689891,1760729466249,-250.0,0.00044999,120]
[391689892,1760729466259,-250.0,0.00044999,120]
[391689893,1760729466269,-250.0,0.00044999,120]
[391689894,1760729466278,-250.0,0.00044999,120]
[391689895,1760729466287,-250.0,0.00044999,120]
[391689896,1760729466297,-250.0,0.00044999,120]
[391689897,1760729466308,-250.0,0.00044999,120]
[391689898,1760729466317,-250.0,0.00044999,120]
[391689899,1760729466327,-250.0,0.00044999,120]
[391689900,1760729466336,-250.0,0.00044999,120]
[391689901,1760729466345,-250.0,0.00044999,120]
[391689902,1760729466354,-250.0,0.00044999,120]
[391689903,1760729466363,-250.0,0.00044999,120]
[391689904,1760729466372,-250.0,0.00044999,120]
[391689905,1760729466381,-239.79609754,0.00044999,120]
[391689906,1760729466391,-151.0,0.00044999,30]
[391689907,1760729466400,-151.0,0.00044999,14]
[391689908,1760729466409,-151.0,0.00044999,120]
[391689909,1760729466418,-151.0,0.00044999,120]
[391689910,1760729466432,-151.0,0.00044999,120]
[391689911,1760729466441,-151.0,0.00044999,120]
[391689912,1760729466450,-151.0,0.00044999,120]
[391689913,1760729466459,-151.0,0.00044999,120]
[391689914,1760729466469,-885.82923,0.00044999,120]
[391689915,1760729466479,-151.0,0.00044999,120]
[391689916,1760729466488,-885.82923,0.00044999,120]
[391689917,1760729466498,-151.0,0.00044999,120]
[391689918,1760729466508,-885.82923,0.00044999,120]
[391689919,1760729466518,-192.780445,0.00044999,120]
[391689920,1760729466527,-885.82923,0.00044999,120]
[391689921,1760729466536,-192.780445,0.00044999,120]
[391689922,1760729466546,-151.0,0.00044999,120]
[391689923,1760729466555,-151.0,0.00044999,120]
[391689924,1760729466565,-192.780445,0.00044999,120]
[391689925,1760729466574,-151.0,0.00044999,120]
[391689926,1760729466583,-192.780445,0.00044999,120]
[391689927,1760729466596,-151.0,0.00044999,120]
[391689928,1760729466605,-151.0,0.00044999,120]
[391689929,1760729466619,-520.0,0.00044999,120]
[391689930,1760729466628,-539.24,0.00044999,120]
[391689931,1760729466638,-559.19188,0.00044999,120]
[391689932,1760729466648,-579.88197956,0.00044999,120]
[391689933,1760729466657,-601.3376128,0.00044999,120]
[391689934,1760729466667,-623.58710448,0.00044999,120]
[391689935,1760729466677,-646.65982734,0.00044999,120]
[391689936,1760729466686,-670.58624095,0.00044999,120]
[391689937,1760729466695,-819.892489,0.00044999,120]
[391689938,1760729466704,-695.39793187,0.00044999,120]
[391689939,1760729466714,-721.12765535,0.00044999,120]
[391689940,1760729466723,-819.892489,0.00044999,120]
[391689941,1760729466732,-747.8093786,0.00044999,120]
[391689942,1760729466743,-775.47832561,0.00044999,120]
[391689943,1760729466752,-819.892489,0.00044999,120]
[391689944,1760729466762,-804.17102365,0.00044999,120]
[391689945,1760729466771,-833.92535153,0.00044999,120]
[391689946,1760729466780,-819.892489,0.00044999,120]
[391689947,1760729466790,-864.78058953,0.00044999,120]
[391689948,1760729466799,-896.77747135,0.00044999,120]
[391689949,1760729466808,-175.77034143,0.00044999,120]
[391689950,1760729466818,-500.0,0.00044999,120]
[391689951,1760729466827,-518.5,0.00044999,120]
[391689952,1760729466836,-537.6845,0.00044999,120]
[391689953,1760729466845,-557.5788265,0.00044999,120]
[391689954,1760729466855,-578.20924308,0.00044999,120]
[391689955,1760729466864,-599.60298507,0.00044999,120]
[391689956,1760729466873,-621.78829552,0.00044999,120]
[391689957,1760729466883,-644.79446246,0.00044999,120]
[391689958,1760729466893,-668.65185757,0.00044999,120]
[391689959,1760729466902,-693.3919763,0.00044999,120]
[391689960,1760729466912,-719.04747942,0.00044999,120]
[391689961,1760729466922,-642.99635445,0.00044999,120]
[391689962,1760729466932,-1000.0,0.00044999,120]
[391689963,1760729466942,-1000.0,0.00044999,120]
[391689964,1760729466951,-1000.0,0.00044999,120]
[391689965,1760729466960,-250.0,0.00044999,120]
[391689966,1760729466969,-1000.0,0.00044999,120]
[391689967,1760729466978,-250.0,0.00044999,120]
[391689968,1760729466987,-1000.0,0.00044999,120]
[391689969,1760729466997,-250.0,0.00044999,120]
[391689970,1760729467006,-1000.0,0.00044999,120]
[391689971,1760729467015,-250.0,0.00044999,120]
[391689972,1760729467025,-1000.0,0.00044999,120]
[391689973,1760729467034,-250.0,0.00044999,120]
[391689974,1760729467043,-1000.0,0.00044999,120]
[391689975,1760729467052,-250.0,0.00044999,120]
[391689976,1760729467061,-250.0,0.00044999,120]
[391689977,1760729467070,-1000.0,0.00044999,120]
[391689978,1760729467080,-250.0,0.00044999,120]
[391689979,1760729467089,-1000.0,0.00044999,120]
[391689980,1760729467099,-250.0,0.00044999,120]
[391689981,1760729467108,-1000.0,0.00044999,120]
[391689982,1760729467118,-250.0,0.00044999,120]
[391689983,1760729467127,-1000.0,0.00044999,120]
[391689984,1760729467137,-250.0,0.00044999,120]
[391689985,1760729467146,-1000.0,0.00044999,120]
[391689986,1760729467156,-250.0,0.00044999,120]
[391689987,1760729467165,-1000.0,0.00044999,120]
[391689988,1760729467174,-250.0,0.00044999,120]
[391689989,1760729467184,-1000.0,0.00044999,120]
[391689990,1760729467193,-250.0,0.00044999,120]
[391689991,1760729467202,-250.0,0.00044999,120]
[391689992,1760729467211,-1000.0,0.00044999,120]
[391689993,1760729467221,-250.0,0.00044999,120]
[391689994,1760729467230,-1000.0,0.00044999,120]
[391689995,1760729467240,-250.0,0.00044999,120]
[391689996,1760729467250,-1000.0,0.00044999,120]
[391689997,1760729467259,-250.0,0.00044999,120]
[391689998,1760729467268,-1000.0,0.00044999,120]
[391689999,1760729467277,-250.0,0.00044999,120]
[391690000,1760729467287,-1000.0,0.00044999,120]
[391690001,1760729467295,-250.0,0.00044999,120]
[391690002,1760729467305,-220.0,0.00044999,120]
[391690003,1760729467315,-220.0,0.00044999,120]
[391690004,1760729467324,-220.0,0.00044999,120]
[391690005,1760729467334,-300.0,0.00044999,120]
[391690006,1760729467345,-311.1,0.00044999,120]
[391690007,1760729467354,-322.6107,0.00044999,120]
[391690008,1760729467364,-334.5472959,0.00044999,120]
[391690009,1760729467373,-346.92554585,0.00044999,120]
[391690010,1760729467383,-359.76179104,0.00044999,120]
[391690011,1760729467392,-373.07297731,0.00044999,120]
[391690012,1760729467401,-386.87667747,0.00044999,120]
[391690013,1760729467411,-401.19111454,0.00044999,120]
[391690014,1760729467420,-416.03518578,0.00044999,120]
[391690015,1760729467433,-150.0,0.00044999,120]
[391690016,1760729467442,-431.42848765,0.00044999,120]
[391690017,1760729467452,-447.3913417,0.00044999,120]
[391690018,1760729467461,-463.94482134,0.00044999,120]
[391690019,1760729467471,-481.11077973,0.00044999,120]
[391690020,1760729467480,-498.91187858,0.00044999,120]
[391690021,1760729467489,-406.35647265,0.00044999,120]
[391690022,1760729467499,-250.0,0.00044999,120]
[391690023,1760729467512,-151.0,0.00044999,120]
[391690024,1760729467521,-151.0,0.00044999,120]
[391690025,1760729467531,-160.0,0.00044999,120]
[391690026,1760729467541,-250.0,0.00044999,120]
[391690027,1760729467550,-151.0,0.00044999,120]
[391690028,1760729467560,-151.0,0.00044999,120]
[391690029,1760729467570,-500.0,0.00044999,120]
[391690030,1760729467579,-250.0,0.00044999,120]
[391690031,1760729467589,-160.0,0.00044999,120]
[391690032,1760729467598,-500.0,0.00044999,120]
[391690033,1760729467608,-151.0,0.00044999,120]
[391690034,1760729467617,-600.0,0.00044999,120]
[391690035,1760729467627,-151.0,0.00044999,120]
[391690036,1760729467636,-250.0,0.00044999,120]
[391690037,1760729467646,-500.0,0.00044999,120]
[391690038,1760729467656,-600.0,0.00044999,120]
[391690039,1760729467665,-151.0,0.00044999,120]
[391690040,1760729467674,-250.0,0.00044999,120]
[391690041,1760729467684,-500.0,0.00044999,120]
[391690042,1760729467694,-151.0,0.00044999,120]
[391690043,1760729467704,-160.0,0.00044999,120]
[391690044,1760729467714,-600.0,0.00044999,120]
[391690045,1760729467727,-151.0,0.00044999,120]
[391690046,1760729467737,-250.0,0.00044999,120]
[391690047,1760729467746,-500.0,0.00044999,120]
[391690048,1760729467756,-160.0,0.00044999,120]
[391690049,1760729467766,-151.0,0.00044999,120]
[391690050,1760729467775,-1000.0,0.00044999,120]
[391690051,1760729467784,-151.0,0.00044999,120]
[391690052,1760729467793,-250.0,0.00044999,120]
[391690053,1760729467802,-500.0,0.00044999,120]
[391690054,1760729467811,-160.0,0.00044999,120]
[391690055,1760729467820,-600.0,0.00044999,120]